fUSD/lending_fUSD_20250107
["ID","MTS","AMOUNT","RATE_DAILY","PERIOD"]
[348069241,1736292642949,-500.0,9.726e-05,2]
[348069242,1736292642958,-500.0,9.726e-05,2]
[348069243,1736292642967,-500.0,9.726e-05,2]
[348069244,1736292642976,-500.0,9.726e-05,2]
[348069245,1736292642985,-500.0,9.726e-05,2]
[348069246,1736292642994,-500.0,9.726e-05,2]
[348069247,1736292643003,-500.0,9.726e-05,2]
[348069248,1736292643012,-500.0,9.726e-05,2]
[348069249,1736292643022,-500.0,9.726e-05,2]
[348069250,1736292643032,-500.0,9.726e-05,2]
[348069251,1736292643041,-500.0,9.726e-05,2]
[348069252,1736292643051,-500.0,9.726e-05,2]
[348069253,1736292643063,-500.0,9.726e-05,2]
[348069254,1736292643073,-500.0,9.726e-05,2]
[348069255,1736292643082,-500.0,9.726e-05,2]
[348069256,1736292643091,-500.0,9.726e-05,2]
[348069257,1736292643102,-500.0,9.726e-05,2]
[348069258,1736292643112,-500.0,9.726e-05,2]
[348069259,1736292643122,-500.0,9.726e-05,2]
[348069260,1736292643132,-500.0,9.726e-05,2]
[348069261,1736292643142,-500.0,9.726e-05,2]
[348069262,1736292643152,-550.57,9.726e-05,2]
[348069263,1736292643161,-500.0,9.726e-05,2]
[348069264,1736292643170,-500.0,9.726e-05,2]
[348069265,1736292643180,-500.0,9.726e-05,2]
[348069266,1736292643189,-500.0,9.726e-05,2]
[348069267,1736292643199,-500.0,9.726e-05,2]
[348069268,1736292643208,-500.0,9.726e-05,2]
[348069269,1736292643217,-500.0,9.726e-05,2]
[348069270,1736292643226,-500.0,9.726e-05,2]
[348069271,1736292643235,-500.0,9.726e-05,2]
[348069273,1736292643245,-500.0,9.726e-05,2]
[348069275,1736292643254,-500.0,9.726e-05,2]
[348069276,1736292643263,-500.0,9.726e-05,2]
[348069277,1736292643272,-500.0,9.726e-05,2]
[348069278,1736292643282,-500.0,9.726e-05,2]
[348069279,1736292643292,-500.0,9.726e-05,2]
[348069280,1736292643301,-500.0,9.726e-05,2]
[348069281,1736292643311,-500.0,9.726e-05,2]
[348069282,1736292643320,-500.0,9.726e-05,2]
[348069283,1736292643330,-500.0,9.726e-05,2]
[348069284,1736292643339,-500.0,9.726e-05,2]
[348069285,1736292643348,-500.0,9.726e-05,2]
[348069287,1736292643358,-500.0,9.726e-05,2]
[348069290,1736292643368,-500.0,9.726e-05,2]
[348069292,1736292643377,-500.0,9.726e-05,2]
[348069294,1736292643387,-500.0,9.726e-05,2]
[348069295,1736292643396,-500.0,9.726e-05,2]
[348069297,1736292643406,-500.0,9.726e-05,2]
[348069298,1736292643416,-500.0,9.726e-05,2]
[348069299,1736292643425,-500.0,9.726e-05,2]
[348069300,1736292643435,-500.0,9.726e-05,2]
[348069301,1736292643445,-634.89,9.726e-05,2]
[348069302,1736292643454,-500.0,9.726e-05,2]
[348069303,1736292643463,-500.0,9.726e-05,2]
[348069304,1736292643473,-500.0,9.726e-05,2]
[348069305,1736292643482,-500.0,9.726e-05,2]
[348069306,1736292643491,-500.0,9.726e-05,2]
[348069307,1736292643501,-500.0,9.726e-05,2]
[348069308,1736292643511,-500.0,9.726e-05,2]
[348069309,1736292643520,-500.0,9.726e-05,2]
[348069310,1736292643529,-313.94229077,9.726e-05,2]
[348069311,1736292643539,-500.0,9.726e-05,2]
[348069312,1736292643548,-500.0,9.726e-05,2]
[348069313,1736292643557,-500.0,9.726e-05,2]
[348069314,1736292643567,-500.0,9.726e-05,2]
[348069315,1736292643575,-500.0,9.726e-05,2]
[348069316,1736292643584,-509.67,9.726e-05,2]
[348069317,1736292643594,-500.0,9.726e-05,2]
[348069318,1736292643602,-500.0,9.726e-05,2]
[348069319,1736292643611,-500.0,9.726e-05,2]
[348069320,1736292643620,-500.0,9.726e-05,2]
[348069321,1736292643630,-500.0,9.726e-05,2]
[348069322,1736292643639,-500.0,9.726e-05,2]
[348069323,1736292643648,-500.0,9.726e-05,2]
[348069324,1736292643658,-500.0,9.726e-05,2]
[348069325,1736292643667,-500.0,9.726e-05,2]
[348069326,1736292643677,-500.0,9.726e-05,2]
[348069327,1736292643686,-500.0,9.726e-05,2]
[348069328,1736292643695,-500.0,9.726e-05,2]
[348069329,1736292643704,-500.0,9.726e-05,2]
[348069330,1736292643713,-500.0,9.726e-05,2]
[348069331,1736292643722,-500.0,9.726e-05,2]
[348069332,1736292643732,-500.0,9.726e-05,2]
[348069333,1736292643741,-500.0,9.726e-05,2]
[348069334,1736292643751,-500.0,9.726e-05,2]
[348069335,1736292643760,-500.0,9.726e-05,2]
[348069336,1736292643769,-500.0,9.726e-05,2]
[348069337,1736292643778,-500.0,9.726e-05,2]
[348069338,1736292643788,-500.0,9.726e-05,2]
[348069339,1736292643797,-500.0,9.726e-05,2]
[348069340,1736292643807,-500.0,9.726e-05,2]
[348069341,1736292643816,-500.0,9.726e-05,2]
[348069342,1736292643825,-500.0,9.726e-05,2]
[348069343,1736292643835,-500.0,9.726e-05,2]
[348069344,1736292643844,-500.0,9.726e-05,2]
[348069345,1736292643853,-500.0,9.726e-05,2]
[348069346,1736292643863,-500.0,9.726e-05,2]
[348069347,1736292643872,-500.0,9.726e-05,2]
[348069348,1736292643881,-500.0,9.726e-05,2]
[348069349,1736292643890,-500.0,9.726e-05,2]
[348069350,1736292643899,-500.0,9.726e-05,2]
[348069351,1736292643910,-500.0,9.726e-05,2]
[348069352,1736292643921,-500.0,9.726e-05,2]
[348069353,1736292643930,-500.0,9.726e-05,2]
[348069354,1736292643939,-306.24873904,9.726e-05,2]
[348069355,1736292643948,-500.0,9.726e-05,2]
[348069356,1736292643957,-500.0,9.726e-05,2]
[348069357,1736292643966,-500.0,9.726e-05,2]
[348069358,1736292643975,-500.0,9.726e-05,2]
[348069359,1736292643984,-500.0,9.726e-05,2]
[348069360,1736292643993,-500.0,9.726e-05,2]
[348069361,1736292644002,-500.0,9.726e-05,2]
[348069362,1736292644011,-500.0,9.726e-05,2]
[348069363,1736292644021,-500.0,9.726e-05,2]
[348069364,1736292644031,-500.0,9.726e-05,2]
[348069365,1736292644042,-500.0,9.726e-05,2]
[348069366,1736292644052,-500.0,9.726e-05,2]
[348069367,1736292644066,-500.0,9.726e-05,2]
[348069368,1736292644076,-500.0,9.726e-05,2]
[348069369,1736292644085,-500.0,9.726e-05,2]
[348069370,1736292644099,-500.0,9.726e-05,2]
[348069371,1736292644110,-500.0,9.726e-05,2]
[348069372,1736292644119,-488.52,9.726e-05,2]
[348069373,1736292644129,-628.12,9.726e-05,2]
[348069374,1736292644139,-500.0,9.726e-05,2]
[348069375,1736292644148,-500.0,9.726e-05,2]
[348069376,1736292644158,-500.0,9.726e-05,2]
[348069377,1736292644167,-500.0,9.726e-05,2]
[348069378,1736292644176,-500.0,9.726e-05,2]
[348069379,1736292644185,-500.0,9.726e-05,2]
[348069380,1736292644195,-500.0,9.726e-05,2]
[348069381,1736292644204,-500.0,9.726e-05,2]
[348069382,1736292644214,-500.0,9.726e-05,2]
[348069383,1736292644223,-500.0,9.726e-05,2]
[348069384,1736292644233,-500.0,9.726e-05,2]
[348069385,1736292644242,-500.0,9.726e-05,2]
[348069386,1736292644252,-608.05,9.726e-05,2]
[348069387,1736292644261,-500.0,9.726e-05,2]
[348069388,1736292644270,-500.0,9.726e-05,2]
[348069389,1736292644279,-500.0,9.726e-05,2]
[348069390,1736292644290,-500.0,9.726e-05,2]
[348069391,1736292644299,-500.0,9.726e-05,2]
[348069392,1736292644308,-225.99,9.726e-05,2]
[348069393,1736292644318,-500.0,9.726e-05,2]
[348069394,1736292644328,-500.0,9.726e-05,2]
[348069395,1736292644337,-500.0,9.726e-05,2]
[348069396,1736292644347,-500.0,9.726e-05,2]
[348069397,1736292644357,-500.0,9.726e-05,2]
[348069398,1736292644367,-500.0,9.726e-05,2]
[348069399,1736292644376,-500.0,9.726e-05,2]
[348069400,1736292644386,-595.99794701,9.726e-05,2]
[348069401,1736292644396,-500.0,9.726e-05,2]
[348069402,1736292644406,-500.0,9.726e-05,2]
[348069403,1736292644415,-500.0,9.726e-05,2]
[348069404,1736292644425,-500.0,9.726e-05,2]
[348069405,1736292644434,-500.0,9.726e-05,2]
[348069406,1736292644443,-500.0,9.726e-05,2]
[348069407,1736292644453,-500.0,9.726e-05,2]
[348069408,1736292644463,-500.0,9.726e-05,2]
[348069409,1736292644472,-500.0,9.726e-05,2]
[348069410,1736292644481,-500.0,9.726e-05,2]
[348069411,1736292644491,-500.0,9.726e-05,2]
[348069412,1736292644501,-500.0,9.726e-05,2]
[348069413,1736292644510,-500.0,9.726e-05,2]
[348069414,1736292644519,-500.0,9.726e-05,2]
[348069415,1736292644529,-340.17,9.726e-05,2]
[348069416,1736292644538,-500.0,9.726e-05,2]
[348069417,1736292644547,-500.0,9.726e-05,2]
[348069418,1736292644556,-500.0,9.726e-05,2]
[348069419,1736292644566,-500.0,9.726e-05,2]
[348069420,1736292644575,-500.0,9.726e-05,2]
[348069421,1736292644585,-521.03,9.726e-05,2]
[348069422,1736292644594,-500.0,9.726e-05,2]
[348069423,1736292644604,-500.0,9.727e-05,2]
[348069424,1736292644613,-500.0,9.727e-05,2]
[348069425,1736292644622,-500.0,9.727e-05,2]
[348069426,1736292644631,-500.0,9.727e-05,2]
[348069427,1736292644643,-500.0,9.727e-05,2]
[348069428,1736292644653,-500.0,9.727e-05,2]
[348069429,1736292644662,-560.18,9.727e-05,2]
[348069430,1736292644671,-284.03693313,9.727e-05,2]
[348069431,1736292644681,-500.0,9.727e-05,2]
[348069432,1736292644690,-532.9,9.727e-05,2]
[348069433,1736292644699,-500.0,9.727e-05,2]
[348069434,1736292644708,-500.0,9.727e-05,2]
[348069435,1736292644718,-838.97,9.727e-05,2]
[348069436,1736292644727,-500.0,9.727e-05,2]
[348069437,1736292644736,-500.0,9.727e-05,2]
[348069438,1736292644745,-500.0,9.727e-05,2]
[348069439,1736292644754,-500.0,9.727e-05,2]
[348069440,1736292644764,-500.0,9.727e-05,2]
[348069441,1736292644773,-500.0,9.727e-05,2]
[348069442,1736292644782,-500.0,9.727e-05,2]
[348069443,1736292644791,-500.0,9.727e-05,2]
[348069444,1736292644800,-500.0,9.727e-05,2]
[348069445,1736292644809,-500.0,9.727e-05,2]
[348069446,1736292644818,-561.68,9.727e-05,2]
[348069447,1736292644827,-500.0,9.727e-05,2]
[348069448,1736292644836,-500.0,9.727e-05,2]
[348069449,1736292644846,-500.0,9.727e-05,2]
[348069450,1736292644855,-500.0,9.727e-05,2]
[348069451,1736292644864,-500.0,9.727e-05,2]
[348069452,1736292644873,-500.0,9.727e-05,2]
[348069453,1736292644882,-500.0,9.727e-05,2]
[348069454,1736292644892,-500.0,9.727e-05,2]
[348069455,1736292644902,-500.0,9.727e-05,2]
[348069456,1736292644911,-650.26,9.727e-05,2]
[348069457,1736292644920,-1115.0,9.727e-05,2]
[348069458,1736292644929,-500.0,9.727e-05,2]
[348069459,1736292644939,-500.0,9.727e-05,2]
[348069460,1736292644948,-500.0,9.727e-05,2]
[348069461,1736292644957,-500.0,9.727e-05,2]
[348069462,1736292644966,-500.0,9.727e-05,2]
[348069463,1736292644976,-1082.07,9.727e-05,2]
[348069464,1736292644985,-649.16,9.727e-05,2]
[348069465,1736292644994,-987.88,9.727e-05,2]
[348069466,1736292645003,-672.76,9.727e-05,2]
[348069467,1736292645012,-500.0,9.727e-05,2]
[348069468,1736292645022,-500.0,9.727e-05,2]
[348069469,1736292645031,-500.0,9.727e-05,2]
[348069470,1736292645041,-500.0,9.727e-05,2]
[348069471,1736292645051,-500.0,9.727e-05,2]
[348069472,1736292645064,-500.0,9.727e-05,2]
[348069473,1736292645073,-500.0,9.727e-05,2]
[348069474,1736292645082,-500.0,9.727e-05,2]
[348069475,1736292645091,-500.0,9.727e-05,2]
[348069476,1736292645100,-500.0,9.727e-05,2]
[348069477,1736292645109,-620.94,9.727e-05,2]
[348069478,1736292645119,-500.0,9.727e-05,2]
[348069479,1736292645128,-500.0,9.727e-05,2]
[348069480,1736292645137,-500.0,9.727e-05,2]
[348069481,1736292645146,-691.37,9.727e-05,2]
[348069482,1736292645156,-500.0,9.727e-05,2]
[348069483,1736292645165,-915.97,9.727e-05,2]
[348069484,1736292645174,-548.18,9.727e-05,2]
[348069485,1736292645183,-500.0,9.727e-05,2]
[348069486,1736292645192,-748.05,9.727e-05,2]
[348069487,1736292645202,-500.0,9.727e-05,2]
[348069488,1736292645211,-500.0,9.727e-05,2]
[348069489,1736292645220,-500.0,9.727e-05,2]
[348069490,1736292645229,-500.0,9.727e-05,2]
[348069491,1736292645239,-785.16,9.727e-05,2]
[348069492,1736292645248,-523.95,9.727e-05,2]
[348069493,1736292645257,-856.44,9.728e-05,2]
[348069494,1736292645266,-981.16,9.728e-05,2]
[348069495,1736292645276,-1160.94,9.728e-05,2]
[348069498,1736292645445,-818.18,9.728e-05,2]
[348069499,1736292645455,-1925.98,9.728e-05,2]
[348069500,1736292645465,-1346.43,9.728e-05,2]
[348069501,1736292645474,-3191.57,9.728e-05,2]
[348069502,1736292645482,-2217.3,9.728e-05,2]
[348069503,1736292645491,-500.0,9.728e-05,2]
[348069504,1736292645500,-1106.25,9.728e-05,2]
[348069505,1736292645509,-3006.56,9.728e-05,2]
[348069506,1736292645518,-744.34,9.728e-05,2]
[348069507,1736292645527,-1231.32,9.728e-05,2]
[348069508,1736292645536,-1259.96,9.728e-05,2]
[348069509,1736292645545,-1978.38,9.728e-05,2]
[348069510,1736292645554,-1056.07,9.728e-05,2]
[348069511,1736292645564,-3128.95,9.728e-05,2]
[348069512,1736292645573,-1437.13,9.728e-05,2]
[348069513,1736292645582,-2298.99,9.728e-05,2]
[348069514,1736292645591,-1358.28,9.728e-05,2]
[348069515,1736292645600,-1418.78,9.728e-05,2]
[348069516,1736292645609,-800.0,9.8e-05,3]
[348069517,1736292645619,-869.24,9.823e-05,2]
[348069518,1736292645628,-671.0,9.823e-05,2]
[348069519,1736292645637,-1267.31,9.823e-05,2]
[348069520,1736292645647,-5460.23,9.823e-05,2]
[348069521,1736292645656,-596.22,9.823e-05,2]
[348069522,1736292645665,-2176.3,9.823e-05,2]
[348069523,1736292645675,-1159.33,9.823e-05,2]
[348069524,1736292645684,-1069.96,9.823e-05,2]
[348069525,1736292645694,-1526.92,9.823e-05,2]
[348069526,1736292645704,-1766.9,9.823e-05,2]
[348069527,1736292645713,-500.0,9.823e-05,2]
[348069528,1736292645723,-935.34,9.823e-05,2]
[348069529,1736292645732,-3211.9,9.823e-05,2]
[348069530,1736292645741,-936.837691,9.823e-05,2]
[348069531,1736292645751,-1374.41,9.823e-05,2]
[348069532,1736292645761,-848.56,9.823e-05,2]
[348069533,1736292645770,-864.840061,9.823e-05,2]
[348069534,1736292645779,-3269.2,9.823e-05,2]
[348069535,1736292645789,-1755.43,9.823e-05,2]
[348069536,1736292645798,-1379.47,9.823e-05,2]
[348069537,1736292645808,-715.68,9.823e-05,2]
[348069538,1736292645817,-713.64,9.823e-05,2]
[348069539,1736292645827,-569.4,9.823e-05,2]
[348069540,1736292645836,-500.0,9.824e-05,2]
[348069541,1736292645845,-500.0,9.824e-05,2]
[348069542,1736292645855,-500.0,9.824e-05,2]
[348069543,1736292645864,-500.0,9.824e-05,2]
[348069544,1736292645874,-500.0,9.824e-05,2]
[348069545,1736292645883,-500.0,9.824e-05,2]
[348069546,1736292645892,-500.0,9.824e-05,2]
[348069547,1736292645901,-500.0,9.824e-05,2]
[348069548,1736292645911,-500.0,9.824e-05,2]
[348069549,1736292645920,-630.82,9.824e-05,2]
[348069550,1736292645929,-500.0,9.824e-05,2]
[348069551,1736292645939,-500.0,9.824e-05,2]
[348069552,1736292645948,-373.59,9.824e-05,2]
[348069553,1736292645958,-500.0,9.824e-05,2]
[348069554,1736292645967,-500.0,9.824e-05,2]
[348069555,1736292645976,-873.35,9.824e-05,2]
[348069556,1736292645985,-500.0,9.824e-05,2]
[348069557,1736292645994,-500.0,9.824e-05,2]
[348069558,1736292646004,-627.81,9.824e-05,2]
[348069559,1736292646013,-500.0,9.824e-05,2]
[348069560,1736292646022,-500.0,9.824e-05,2]
[348069561,1736292646033,-1651.15,9.824e-05,2]
[348069562,1736292646043,-830.73,9.824e-05,2]
[348069563,1736292646053,-2943.89,9.824e-05,2]
[348069564,1736292646066,-1390.53,9.824e-05,2]
[348069565,1736292646077,-747.25,9.824e-05,2]
[348069566,1736292646087,-693.1,9.824e-05,2]
[348069567,1736292646097,-500.0,9.824e-05,2]
[348069568,1736292646107,-735.02,9.824e-05,2]
[348069569,1736292646117,-714.32,9.824e-05,2]
[348069570,1736292646127,-500.0,9.824e-05,2]
[348069571,1736292646136,-1293.95,9.824e-05,2]
[348069572,1736292646148,-243.90760849,9.824e-05,2]
[348069573,1736292646157,-500.0,9.824e-05,2]
[348069574,1736292646167,-669.98,9.824e-05,2]
[348069575,1736292646176,-1091.45,9.824e-05,2]
[348069576,1736292646186,-500.0,9.824e-05,2]
[348069577,1736292646195,-768.98,9.824e-05,2]
[348069578,1736292646204,-536.11,9.824e-05,2]
[348069579,1736292646213,-1066.69,9.824e-05,2]
[348069580,1736292646223,-5859.49,9.825e-05,2]
[348069581,1736292646232,-1032.62,9.825e-05,2]
[348069582,1736292646242,-628.06,9.825e-05,2]
[348069583,1736292646251,-648.95,9.825e-05,2]
[348069584,1736292646260,-2801.34,9.825e-05,2]
[348069585,1736292646269,-500.0,9.825e-05,2]
[348069586,1736292646278,-1062.87,9.825e-05,2]
[348069587,1736292646288,-1463.66,9.825e-05,2]
[348069588,1736292646298,-1150.62,9.825e-05,2]
[348069589,1736292646307,-1898.62,9.825e-05,2]
[348069590,1736292646316,-1000.0,9.825e-05,2]
[348069591,1736292646326,-1279.25,9.825e-05,2]
[348069592,1736292646336,-778.74,9.825e-05,2]
[348069593,1736292646345,-2516.19,9.825e-05,2]
[348069594,1736292646354,-2106.61,9.825e-05,2]
[348069595,1736292646364,-4859.97566595,9.888e-05,2]
[348069596,1736292646373,-541.07,9.9e-05,2]
[348069597,1736292646383,-500.0,9.9e-05,2]
[348069598,1736292646392,-524.27,9.9e-05,2]
[348069599,1736292646402,-571.57,9.9e-05,2]
[348069600,1736292646412,-500.0,9.9e-05,2]
[348069601,1736292646422,-693.44,9.9e-05,2]
[348069602,1736292646431,-509.19,9.9e-05,2]
[348069603,1736292646441,-657.72,9.9e-05,2]
[348069604,1736292646450,-500.0,9.9e-05,2]
[348069605,1736292646460,-500.0,9.9e-05,2]
[348069606,1736292646470,-500.0,9.9e-05,2]
[348069607,1736292646479,-500.0,9.9e-05,2]
[348069608,1736292646488,-500.0,9.9e-05,2]
[348069609,1736292646498,-521.0,9.9e-05,2]
[348069610,1736292646508,-503.96,9.9e-05,2]
[348069611,1736292646518,-500.0,9.9e-05,2]
[348069612,1736292646527,-500.0,9.9e-05,2]
[348069613,1736292646537,-500.0,9.9e-05,2]
[348069614,1736292646546,-561.94,9.9e-05,2]
[348069615,1736292646555,-589.55,9.9e-05,2]
[348069616,1736292646564,-500.0,9.9e-05,2]
[348069617,1736292646574,-500.0,9.9e-05,2]
[348069618,1736292646584,-500.0,9.9e-05,2]
[348069619,1736292646593,-669.39,9.9e-05,2]
[348069620,1736292646603,-500.0,9.9e-05,2]
[348069621,1736292646612,-500.0,9.9e-05,2]
[348069622,1736292646621,-602.31,9.9e-05,2]
[348069623,1736292646630,-500.0,9.9e-05,2]
[348069624,1736292646640,-500.0,9.9e-05,2]
[348069625,1736292646649,-543.78,9.9e-05,2]
[348069626,1736292646661,-500.0,9.9e-05,2]
[348069627,1736292646672,-500.0,9.9e-05,2]
[348069628,1736292646681,-631.46,9.9e-05,2]
[348069629,1736292646692,-500.0,9.9e-05,2]
[348069630,1736292646701,-500.0,9.9e-05,2]
[348069631,1736292646711,-500.0,9.9e-05,2]
[348069632,1736292646720,-500.0,9.9e-05,2]
[348069633,1736292646729,-500.0,9.9e-05,2]
[348069634,1736292646739,-500.0,9.9e-05,2]
[348069635,1736292646749,-618.91,9.9e-05,2]
[348069636,1736292646758,-500.0,9.9e-05,2]
[348069637,1736292646767,-500.0,9.9e-05,2]
[348069638,1736292646777,-662.58,9.9e-05,2]
[348069639,1736292646786,-643.65,9.9e-05,2]
[348069640,1736292646796,-574.37,9.9e-05,2]
[348069641,1736292646805,-640.72,9.9e-05,2]
[348069642,1736292646815,-500.0,9.9e-05,2]
[348069643,1736292646825,-500.0,9.9e-05,2]
[348069644,1736292646834,-826.87,9.9e-05,2]
[348069645,1736292646844,-548.03,9.9e-05,2]
[348069646,1736292646854,-500.0,9.9e-05,2]
[348069647,1736292646863,-698.06,9.9e-05,2]
[348069648,1736292646873,-500.0,9.9e-05,2]
[348069649,1736292646882,-500.0,9.9e-05,2]
[348069650,1736292646892,-1700.0,9.9e-05,3]
[348069651,1736292646901,-604.13,9.9e-05,2]
[348069652,1736292646912,-500.0,9.9e-05,2]
[348069653,1736292646922,-500.0,9.9e-05,2]
[348069654,1736292646931,-500.0,9.9e-05,2]
[348069655,1736292646939,-559.91,9.9e-05,2]
[348069656,1736292646949,-2335.15,9.9e-05,2]
[348069657,1736292646957,-3858.83,9.9e-05,2]
[348069658,1736292646966,-576.27,9.9e-05,2]
[348069659,1736292646976,-398.52,9.9e-05,2]
[348069660,1736292646985,-500.0,9.9e-05,2]
[348069661,1736292646995,-752.42,9.9e-05,2]
[348069662,1736292647005,-2247.14,9.9e-05,2]
[348069663,1736292647015,-500.0,9.9e-05,2]
[348069664,1736292647026,-500.0,9.9e-05,2]
[348069665,1736292647035,-703.22,9.9e-05,2]
[348069666,1736292647046,-709.69,9.9e-05,2]
[348069667,1736292647056,-3001.65,9.9e-05,2]
[348069668,1736292647070,-500.0,9.9e-05,2]
[348069669,1736292647080,-500.0,9.9e-05,2]
[348069670,1736292647089,-500.0,9.9e-05,2]
[348069671,1736292647099,-944.77,9.9e-05,2]
[348069672,1736292647109,-500.0,9.9e-05,2]
[348069673,1736292647118,-501.02,9.9e-05,2]
[348069674,1736292647128,-1004.2,9.9e-05,2]
[348069675,1736292647138,-500.0,9.9e-05,2]
[348069676,1736292647147,-500.0,9.9e-05,2]
[348069677,1736292647157,-555.21,9.9e-05,2]
[348069678,1736292647168,-575.12,9.9e-05,2]
[348069679,1736292647178,-941.82,9.9e-05,2]
[348069680,1736292647188,-607.67,9.9e-05,2]
[348069681,1736292647198,-500.0,9.9e-05,2]
[348069682,1736292647207,-500.0,9.9e-05,2]
[348069683,1736292647217,-500.0,9.9e-05,2]
[348069684,1736292647227,-500.0,9.9e-05,2]
[348069685,1736292647237,-982.60612731,9.901e-05,2]
[348069686,1736292647247,-17192.7228623,9.901e-05,2]
[348069687,1736292647257,-500.0,9.958e-05,2]
[348069688,1736292647267,-2351.89,9.959e-05,2]
[348069689,1736292647276,-1267.64,9.959e-05,2]
[348069690,1736292647286,-861.33,9.959e-05,2]
[348069691,1736292647296,-915.28,9.959e-05,2]
[348069692,1736292647305,-500.0,9.959e-05,2]
[348069693,1736292647315,-1100.64,9.959e-05,2]
[348069694,1736292647324,-673.78,9.959e-05,2]
[348069695,1736292647334,-754.88,9.959e-05,2]
[348069696,1736292647343,-802.12,9.959e-05,2]
[348069697,1736292647353,-1104.23,9.959e-05,2]
[348069698,1736292647362,-1542.83,9.959e-05,2]
[348069699,1736292647372,-2595.99,9.959e-05,2]
[348069700,1736292647382,-1547.9,9.959e-05,2]
[348069701,1736292647391,-361.39496499,9.966e-05,2]
[348069702,1736292647401,-500.0,9.973e-05,2]
[348069703,1736292647412,-255.0,9.987e-05,2]
[348069704,1736292647422,-500.0,0.0001,2]
[348069705,1736292647431,-500.0,0.0001,2]
[348069706,1736292647440,-500.0,0.0001,2]
[348069707,1736292647451,-500.0,0.0001,2]
[348069708,1736292647461,-500.0,0.0001,2]
[348069709,1736292647471,-500.0,0.0001,2]
[348069710,1736292647481,-500.0,0.0001,2]
[348069711,1736292647491,-500.0,0.0001,2]
[348069712,1736292647503,-500.0,0.0001,2]
[348069713,1736292647513,-500.0,0.0001,2]
[348069714,1736292647522,-500.0,0.0001,2]
[348069715,1736292647532,-500.0,0.0001,2]
[348069716,1736292647542,-500.0,0.0001,2]
[348069717,1736292647551,-500.0,0.0001,2]
[348069718,1736292647561,-500.0,0.0001,2]
[348069719,1736292647570,-500.0,0.0001,2]
[348069720,1736292647579,-500.0,0.0001,2]
[348069721,1736292647588,-403.25967856,0.0001,2]
[348069722,1736292647597,-500.0,0.0001,2]
[348069723,1736292647606,-500.0,0.0001,2]
[348069724,1736292647615,-500.0,0.0001,2]
[348069725,1736292647624,-634.89,0.0001,2]
[348069726,1736292647634,-500.0,0.0001,2]
[348069727,1736292647643,-500.0,0.0001,2]
[348069728,1736292647652,-500.0,0.0001,2]
[348069729,1736292647662,-495.64,0.0001,2]
[348069730,1736292647672,-2481.80947541,0.0001,2]
[348069731,1736292647682,-500.0,0.0001,2]
[348069732,1736292647691,-500.0,0.0001,2]
[348069733,1736292647701,-500.0,0.0001,2]
[348069734,1736292647710,-500.0,0.0001,2]
[348069735,1736292647720,-500.0,0.0001,2]
[348069736,1736292647729,-500.0,0.0001,2]
[348069737,1736292647739,-500.0,0.0001,2]
[348069738,1736292647748,-500.0,0.0001,2]
[348069739,1736292647757,-500.0,0.0001,2]
[348069740,1736292647766,-500.0,0.0001,2]
[348069741,1736292647775,-500.0,0.0001,2]
[348069742,1736292647784,-500.0,0.0001,2]
[348069743,1736292647794,-500.0,0.0001,2]
[348069744,1736292647804,-500.0,0.0001,2]
[348069745,1736292647814,-500.0,0.0001,2]
[348069746,1736292647823,-400.48,0.0001,2]
[348069747,1736292647833,-500.0,0.0001,2]
[348069748,1736292647842,-500.0,0.0001,2]
[348069749,1736292647852,-180.19654359,0.0001,2]
[348069750,1736292647862,-226.01,0.0001,2]